bitfinex/quotes_BTCUSD_20220109
["timestamp","ask_amount","ask_price","bid_price","bid_amount"]
[1641710655493,0.96528,41915.0,41912.0,0.01]
[1641710655894,0.96528,41915.0,41912.0,0.00983468]
[1641710656739,0.95528,41915.0,41911.0,0.21]
[1641710657135,0.95528,41915.0,41912.0,0.05965908]
[1641710657536,0.98228,41915.0,41912.0,0.05965908]
[1641710658636,0.95528,41915.0,41912.0,0.05965908]
[1641710659036,0.95528,41915.0,41911.0,0.21]
[1641710659437,0.98228,41915.0,41912.0,0.008]
[1641710660595,0.95528,41915.0,41911.0,0.21]
[1641710661097,0.95528,41915.0,41911.0,0.26966053]
[1641710661493,0.98128,41915.0,41911.0,0.27766053]
[1641710661694,0.98128,41915.0,41911.0,0.21788634]
[1641710662696,0.95528,41915.0,41911.0,0.20988634]
[1641710663397,0.98128,41915.0,41911.0,0.21788634]
[1641710664642,0.95528,41915.0,41912.0,0.05965947]
[1641710665442,0.95528,41915.0,41912.0,0.07065947]
[1641710665741,0.95528,41915.0,41913.0,0.30508459]
[1641710665945,0.95528,41915.0,41913.0,0.45508459]
[1641710666145,0.95528,41915.0,41914.0,0.95650698]
[1641710666344,0.95528,41915.0,41914.0,1.34145214]
[1641710666542,0.95528,41915.0,41914.0,1.44145214]
[1641710666742,0.95528,41915.0,41914.0,1.03494516]
[1641710667343,0.95528,41915.0,41914.0,1.04794516]
[1641710667544,0.95528,41915.0,41914.0,0.49794516]
[1641710667992,0.95528,41915.0,41914.0,0.92768111]
[1641710668190,0.95528,41915.0,41914.0,1.37768111]
[1641710668592,0.95528,41915.0,41914.0,1.36468111]
[1641710668790,0.95528,41915.0,41914.0,0.91468111]
[1641710669393,0.95528,41915.0,41914.0,0.93068111]
[1641710670692,0.95528,41915.0,41914.0,0.91468111]
[1641710671634,0.95528,41915.0,41914.0,0.93068111]
[1641710672636,0.95528,41915.0,41914.0,0.91468111]
[1641710673537,0.95528,41915.0,41914.0,0.92968111]
[1641710674236,0.95528,41915.0,41914.0,0.92977262]
[1641710674637,0.95528,41915.0,41914.0,0.91477262]
[1641710675487,0.95528,41915.0,41914.0,0.92977262]
[1641710676689,0.95528,41915.0,41914.0,0.91477262]
[1641710677593,0.95528,41915.0,41914.0,0.92977262]
[1641710679240,0.95528,41915.0,41914.0,0.91477262]
[1641710679443,0.95528,41915.0,41914.0,0.92877262]
[1641710679640,0.95528,41915.0,41914.0,0.39903667]
[1641710680639,0.95528,41915.0,41914.0,0.01537867]
[1641710680840,0.95528,41915.0,41914.0,0.06537867]
[1641710681041,0.95528,41915.0,41914.0,0.11537867]
[1641710681243,0.95528,41915.0,41914.0,0.48503667]
[1641710681442,0.95528,41915.0,41914.0,0.85645162]
[1641710681640,0.95528,41915.0,41914.0,0.95645162]
[1641710681840,0.95528,41915.0,41914.0,1.07574862]
[1641710682744,0.95528,41915.0,41914.0,1.06274862]
[1641710683390,0.95528,41915.0,41914.0,1.07574862]
[1641710683590,0.95528,41915.0,41914.0,1.07446146]
[1641710683790,0.95528,41915.0,41914.0,0.71604651]
[1641710684192,0.95528,41915.0,41914.0,1.06740858]
[1641710684791,0.95528,41915.0,41914.0,1.05440858]
[1641710685495,0.95528,41915.0,41914.0,1.06640858]
[1641710686292,0.95528,41915.0,41914.0,0.71504651]
[1641710686492,0.95528,41915.0,41914.0,0.51504651]
[1641710686769,0.95528,41915.0,41914.0,0.50304651]
[1641710687465,0.95528,41915.0,41914.0,0.51504651]
[1641710687868,0.95528,41915.0,41914.0,0.71504651]
[1641710688465,0.95528,41915.0,41914.0,1.05844972]
[1641710688666,0.95528,41915.0,41914.0,1.04644972]
[1641710689569,0.95528,41915.0,41914.0,1.05844972]
[1641710690788,0.95528,41915.0,41914.0,0.70304651]
[1641710691487,0.95528,41915.0,41914.0,0.71504651]
[1641710692691,0.95528,41915.0,41914.0,0.70304651]
[1641710693297,0.95528,41915.0,41914.0,1.04672006]
[1641710693492,0.95528,41915.0,41914.0,1.05872006]
[1641710693695,0.95528,41915.0,41914.0,0.71504651]
[1641710694638,0.95528,41915.0,41914.0,0.56504651]
[1641710694941,0.95528,41915.0,41914.0,0.60304651]
[1641710695640,0.95528,41915.0,41914.0,0.61704651]
[1641710696840,0.95528,41915.0,41914.0,0.60304651]
[1641710697640,0.95528,41915.0,41914.0,0.61904651]
[1641710698796,0.95528,41915.0,41914.0,0.60304651]
[1641710699499,0.95528,41915.0,41914.0,0.61704651]
[1641710700399,0.95528,41915.0,41914.0,0.71704651]
[1641710700600,0.95528,41915.0,41914.0,1.06349863]
[1641710700801,0.95528,41915.0,41914.0,1.04949863]
[1641710701645,0.95528,41915.0,41914.0,1.06349863]
[1641710702741,0.95528,41915.0,41914.0,1.04949863]
[1641710703542,0.95528,41915.0,41914.0,1.06249863]
[1641710704843,0.95528,41915.0,41914.0,1.04949863]
[1641710705494,0.95528,41915.0,41914.0,1.06249863]
[1641710706690,0.95528,41915.0,41914.0,1.04949863]
[1641710707091,0.95528,41915.0,41914.0,1.35924865]
[1641710707492,0.95528,41915.0,41914.0,1.37324865]
[1641710708293,0.95503736,41915.0,41914.0,1.06349863]
[1641710708893,0.95503736,41915.0,41914.0,1.04949863]
[1641710709364,0.95803104,41915.0,41914.0,1.04949863]
[1641710709565,0.95803104,41915.0,41914.0,1.06649863]
[1641710710165,0.95803104,41915.0,41914.0,1.06736246]
[1641710710767,0.95803104,41915.0,41914.0,1.05036246]
[1641710711667,0.95803104,41915.0,41914.0,1.07236246]
[1641710712768,0.95803104,41915.0,41914.0,1.05036246]
[1641710712992,0.95803104,41915.0,41914.0,0.60391034]
[1641710713391,0.95803104,41915.0,41914.0,0.97220762]
[1641710713591,0.95803104,41915.0,41914.0,0.99720762]
[1641710714796,0.95803104,41915.0,41914.0,0.97220762]
[1641710715595,0.95803104,41915.0,41914.0,0.99320762]
[1641710716844,0.95803104,41915.0,41914.0,1.09320762]
[1641710717049,0.95803104,41915.0,41914.0,1.35731345]
[1641710717648,0.95803104,41915.0,41914.0,1.37431345]
[1641710718950,0.95803104,41915.0,41914.0,1.33631345]
[1641710719548,0.95803104,41915.0,41914.0,1.35331345]
[1641710720149,0.95803104,41915.0,41914.0,1.08920762]
[1641710720804,0.95803104,41915.0,41914.0,1.07220762]
[1641710721608,0.95803104,41915.0,41914.0,1.08920762]
[1641710722208,0.95803104,41915.0,41914.0,0.88920762]
[1641710722509,0.95803104,41915.0,41914.0,0.52091034]
[1641710722908,0.95803104,41915.0,41914.0,0.50391034]
[1641710723507,0.95803104,41915.0,41914.0,0.60391034]
[1641710725239,0.95803104,41915.0,41914.0,0.48461334]
[1641710728502,0.95803104,41915.0,41914.0,0.10095534]
[1641710729001,0.95789939,41915.0,41914.0,0.05095534]
[1641710729204,0.95789939,41915.0,41914.0,0.10095534]
[1641710729600,0.96289939,41915.0,41914.0,0.10095534]
[1641710730112,0.96289939,41915.0,41914.0,0.05095534]
[1641710730303,0.96289939,41915.0,41914.0,0.10095534]
[1641710730501,0.96289939,41915.0,41914.0,0.05095534]
[1641710730702,0.96289939,41915.0,41914.0,0.10095534]
[1641710731507,0.95789939,41915.0,41914.0,0.10095534]
[1641710731758,0.96389939,41915.0,41914.0,0.10095534]
[1641710732960,0.95789939,41915.0,41914.0,0.10095534]
[1641710733559,0.96389939,41915.0,41914.0,0.10095534]
[1641710734860,0.95789939,41915.0,41914.0,0.10095534]
[1641710735700,0.96389939,41915.0,41914.0,0.10095534]
[1641710737600,0.96989939,41915.0,41914.0,0.10095534]
[1641710738903,0.95789939,41915.0,41914.0,0.10095534]
[1641710739546,0.96289939,41915.0,41914.0,0.10095534]
[1641710740946,0.95789939,41915.0,41914.0,0.10095534]
[1641710741747,0.96289939,41915.0,41914.0,0.10095534]
[1641710742894,0.95789939,41915.0,41914.0,0.10095534]
[1641710743594,0.96489939,41915.0,41914.0,0.10095534]
[1641710743997,0.95989939,41915.0,41914.0,0.10095534]
[1641710744899,0.95289939,41915.0,41914.0,0.10095534]
[1641710745698,0.95989939,41915.0,41914.0,0.10095534]
[1641710746941,0.95289939,41915.0,41914.0,0.10095534]
[1641710747741,0.95989939,41915.0,41914.0,0.10095534]
[1641710748943,0.95289939,41915.0,41914.0,0.10095534]
[1641710749350,1.36036107,41915.0,41914.0,0.00095534]
[1641710749744,1.36536107,41915.0,41914.0,0.00095534]
[1641710750795,1.41316107,41915.0,41914.0,0.00095534]
[1641710750996,1.40816107,41915.0,41914.0,0.00095534]
[1641710751694,1.41316107,41915.0,41914.0,0.00095534]
[1641710752697,1.61316107,41915.0,41914.0,0.00095534]
[1641710752897,1.60816107,41915.0,41914.0,0.00095534]
[1641710753397,1.60816107,41915.0,41910.0,0.00041318]
[1641710753398,0.2,41913.0,41910.0,0.00041318]
[1641710753594,0.2,41911.0,41910.0,0.00041318]
[1641710753795,0.2478,41911.0,41910.0,0.00041318]
[1641710754147,1.26797379,41911.0,41910.0,0.00041318]
[1641710754548,1.36797379,41911.0,41910.0,0.00042192]
[1641710755651,1.8080594,41911.0,41910.0,0.00042192]
[1641710757049,1.8210594,41911.0,41910.0,0.00042192]
[1641710757749,1.8430594,41911.0,41910.0,0.00042192]
[1641710758002,1.7430594,41911.0,41910.0,0.00042192]
[1641710758795,1.7430594,41911.0,41910.0,0.00042172]
[1641710758995,1.7080594,41911.0,41910.0,0.00042172]
[1641710760998,1.7080594,41911.0,41910.0,0.00084344]
[1641710760999,0.76069939,41911.0,41910.0,0.00084344]
[1641710761201,0.71289939,41911.0,41910.0,0.00042172]
[1641710761644,0.72689939,41911.0,41910.0,0.00042172]
[1641710762848,0.72689939,41911.0,41910.0,0.35160097]
[1641710763050,0.72689939,41911.0,41910.0,0.00042172]
[1641710763051,0.71289939,41911.0,41910.0,0.00042172]
[1641710764248,0.71289939,41911.0,41910.0,0.00084344]
[1641710764447,0.71289939,41911.0,41910.0,0.00042172]
[1641710765705,0.71989939,41911.0,41910.0,0.00042172]
[1641710767000,0.71289939,41911.0,41910.0,0.00042172]
[1641710767803,0.71689939,41911.0,41910.0,0.00042172]
[1641710769001,0.71289939,41911.0,41910.0,0.00042172]
[1641710769650,0.72289939,41911.0,41910.0,0.00042172]
[1641710771052,0.71289939,41911.0,41910.0,0.00042172]
[1641710771651,0.72289939,41911.0,41910.0,0.00042172]
[1641710772993,0.71289939,41911.0,41910.0,0.00042172]
[1641710773795,0.72289939,41911.0,41910.0,0.00042172]
[1641710775000,0.71289939,41911.0,41910.0,0.00042172]
[1641710775797,0.72289939,41911.0,41910.0,0.00042172]
[1641710777051,0.71289939,41911.0,41910.0,0.00042172]
[1641710777852,0.72289939,41911.0,41910.0,0.00042172]
[1641710778657,0.72289939,41911.0,41910.0,0.00084344]
[1641710778855,0.72289939,41911.0,41910.0,0.00042172]
[1641710779657,0.71289939,41911.0,41909.0,0.23147558]
[1641710779856,0.72289939,41911.0,41910.0,0.00042172]
[1641710780058,0.71990571,41911.0,41910.0,0.00032299]
[1641710780258,0.72289939,41911.0,41910.0,0.00032299]
[1641710780898,0.72289939,41911.0,41909.0,0.23147558]
[1641710781099,0.71289939,41911.0,41909.0,0.23147558]
[1641710781697,0.71589939,41911.0,41909.0,0.23147558]
[1641710781897,0.71589939,41911.0,41909.0,0.17181158]
[1641710782298,0.71589939,41911.0,41909.0,0.23147558]
[1641710782899,0.71289939,41911.0,41909.0,0.23147558]
[1641710783700,0.72189939,41911.0,41909.0,0.23147558]
[1641710785050,0.72189939,41911.0,41909.0,0.23605386]
[1641710785251,0.71890571,41911.0,41909.0,0.23605386]
[1641710785649,0.00299368,41910.0,41909.0,0.23605386]
[1641710787900,0.01199368,41910.0,41909.0,0.23605386]
[1641710789103,0.00299368,41910.0,41909.0,0.23605386]
[1641710789703,0.01199368,41910.0,41909.0,0.23605386]
[1641710790704,0.01199368,41910.0,41909.0,0.12638986]
[1641710791102,0.00299368,41910.0,41909.0,0.12638986]
[1641710791505,0.00299368,41910.0,41909.0,0.52951738]
[1641710791769,0.01199368,41910.0,41909.0,0.52951738]
[1641710793066,0.00299368,41910.0,41909.0,0.52951738]
[1641710793866,0.00399368,41910.0,41909.0,0.52951738]
[1641710794065,0.00399368,41910.0,41909.0,0.17638986]
[1641710795066,0.00299368,41910.0,41909.0,0.17638986]
[1641710795903,0.00599368,41910.0,41909.0,0.17638986]
[1641710796707,0.00599368,41910.0,41909.0,0.07638986]
[1641710797009,0.00299368,41910.0,41909.0,0.01672248]
[1641710797207,0.00299368,41910.0,41909.0,0.016814]
[1641710797809,0.01299368,41910.0,41909.0,0.016814]
[1641710799155,0.00299368,41910.0,41909.0,0.016814]
[1641710799757,0.01399368,41910.0,41909.0,0.016814]
[1641710800359,0.01399368,41910.0,41909.0,0.066814]
[1641710800758,0.01399368,41910.0,41909.0,0.40707336]
[1641710800960,0.00299368,41910.0,41909.0,0.40707336]
[1641710801761,0.00699368,41910.0,41909.0,0.40707336]
[1641710803100,0.00299368,41910.0,41909.0,0.40707336]
[1641710803900,0.00399368,41910.0,41909.0,0.40707336]
[1641710805003,0.00299368,41910.0,41909.0,0.40707336]
[1641710805803,0.00399368,41910.0,41909.0,0.40707336]
[1641710806666,0.00399368,41910.0,41909.0,1.29806199]
[1641710806860,0.70990571,41911.0,41909.0,1.33300583]
[1641710807059,0.70990571,41911.0,41910.0,0.93005457]
[1641710807262,0.70990571,41911.0,41910.0,0.93014609]
[1641710807463,0.70990571,41911.0,41910.0,1.03014609]
[1641710807661,0.70990571,41911.0,41910.0,1.32525969]
[1641710808060,0.70977929,41911.0,41910.0,1.32525969]
[1641710810516,0.70977929,41911.0,41910.0,1.08978972]
[1641710811211,0.70977929,41911.0,41910.0,0.50303915]
[1641710811410,0.70977929,41911.0,41910.0,0.84739179]
[1641710811612,0.70977929,41911.0,41910.0,0.94739179]
[1641710819008,0.70977929,41911.0,41910.0,0.84739179]
[1641710819907,0.70977929,41911.0,41910.0,0.50303915]
[1641710827806,0.71677929,41911.0,41910.0,0.50303915]
[1641710829153,0.70977929,41911.0,41910.0,0.50303915]
[1641710829952,0.71477929,41911.0,41910.0,0.50303915]
[1641710831155,0.70977929,41911.0,41910.0,0.50303915]
[1641710831855,0.71377929,41911.0,41910.0,0.50303915]
[1641710833112,0.70977929,41911.0,41910.0,0.50303915]
[1641710833508,0.70977929,41911.0,41910.0,0.11938115]
[1641710833908,0.71877929,41911.0,41910.0,0.11938115]
[1641710835308,0.70977929,41911.0,41910.0,0.05973515]
[1641710835912,0.71977929,41911.0,41910.0,0.05973515]
[1641710836512,0.71977929,41911.0,41910.0,9.152e-05]
[1641710837160,0.70977929,41911.0,41910.0,9.152e-05]
[1641710837960,0.71577929,41911.0,41910.0,9.152e-05]
[1641710839261,0.70977929,41911.0,41910.0,0.05975945]
[1641710839861,0.71877929,41911.0,41910.0,9.152e-05]
[1641710841306,0.70977929,41911.0,41910.0,9.152e-05]
[1641710841906,0.71477929,41911.0,41910.0,9.152e-05]
[1641710843312,0.70977929,41911.0,41910.0,9.152e-05]
[1641710843912,0.71477929,41911.0,41910.0,9.152e-05]
[1641710845176,0.70977929,41911.0,41910.0,9.152e-05]
[1641710845976,0.71477929,41911.0,41910.0,9.152e-05]
[1641710847179,0.70977929,41911.0,41910.0,9.152e-05]
[1641710848012,0.72077929,41911.0,41910.0,9.152e-05]
[1641710849111,0.70977929,41911.0,41910.0,9.152e-05]
[1641710849908,0.72077929,41911.0,41910.0,9.152e-05]
[1641710851111,1.22077929,41911.0,41910.0,9.152e-05]
[1641710851311,0.80977929,41911.0,41910.0,9.152e-05]
[1641710852058,0.82577929,41911.0,41910.0,9.152e-05]
[1641710853156,0.80977929,41911.0,41910.0,9.152e-05]
[1641710853957,0.83377929,41911.0,41910.0,9.152e-05]
[1641710854361,1.03377929,41911.0,41910.0,9.152e-05]
[1641710854560,0.2,41908.0,41905.0,0.00042069]
[1641710854760,0.38029159,41906.0,41905.0,0.00042049]
[1641710854959,0.30871159,41906.0,41905.0,0.00042049]
[1641710855161,1.01849088,41906.0,41905.0,0.00042049]
[1641710855609,1.36864747,41906.0,41905.0,0.00042049]
[1641710855811,1.36742488,41906.0,41901.0,0.24041069]
[1641710856010,1.32773588,41906.0,41901.0,0.24041069]
[1641710856211,1.12773588,41906.0,41901.0,0.24041069]
[1641710857016,0.40219474,41905.0,41901.0,0.24041069]
[1641710857213,0.40219474,41905.0,41902.0,0.05968096]
[1641710858013,0.62819474,41905.0,41901.0,0.24041069]
[1641710858213,1.00319661,41905.0,41901.0,0.24041069]
[1641710858612,0.42819474,41905.0,41903.0,0.28644437]
[1641710858815,0.026,41905.0,41903.0,0.28644437]
[1641710859016,0.026,41905.0,41904.0,0.34110546]
[1641710859261,0.70977929,41906.0,41904.0,0.39110546]
[1641710859460,0.70977929,41906.0,41905.0,0.40121606]
[1641710860058,0.72177929,41906.0,41905.0,0.40921606]
[1641710860660,0.72177929,41906.0,41905.0,0.46887806]
[1641710861058,0.72177929,41906.0,41905.0,0.85253606]
[1641710861259,0.70977929,41906.0,41905.0,0.84453606]
[1641710862060,0.70977929,41906.0,41905.0,0.85453606]
[1641710863008,0.70977929,41906.0,41905.0,0.95453606]
[1641710863211,0.01672248,41909.0,41906.0,0.0966218]
[1641710863409,0.01672248,41909.0,41908.0,0.44455419]
[1641710863609,0.9641,41921.0,41908.0,0.44455419]
[1641710863610,0.9641,41921.0,41908.0,1.12750085]
[1641710863811,0.9641,41921.0,41908.0,1.06785385]
[1641710864008,0.9641,41921.0,41908.0,1.08485385]
[1641710864209,0.9641,41921.0,41916.0,0.27430144]
[1641710864411,0.2903,41923.0,41917.0,0.41233572]
[1641710864716,0.52216076,41920.0,41918.0,0.06089068]
[1641710864911,0.52216076,41920.0,41919.0,0.39517546]
[1641710865109,0.52216076,41920.0,41919.0,0.44517546]
[1641710865910,0.52216076,41920.0,41919.0,0.84383346]
[1641710867266,0.52216076,41920.0,41919.0,0.82883346]
[1641710867669,0.18433062,41941.0,41920.0,1.33216076]
[1641710867871,0.2892,41940.0,41930.0,0.08787332]
[1641710868071,0.000696,41941.0,41935.0,0.059625]
[1641710868072,0.71539,41939.0,41935.0,0.059625]
[1641710868270,0.71539,41939.0,41936.0,0.00121699]
[1641710868572,0.71539,41939.0,41937.0,0.30983852]
[1641710868769,0.71539,41939.0,41937.0,0.35983852]
[1641710868969,0.71539,41939.0,41937.0,0.50983852]
[1641710869270,0.00042528,41938.0,41937.0,0.50983852]
[1641710869468,0.00042528,41938.0,41937.0,0.56945352]
[1641710869669,0.00042528,41938.0,41937.0,0.62906452]
[1641710869871,0.00042528,41938.0,41937.0,1.02432229]
[1641710870073,0.00085056,41938.0,41937.0,1.48859812]
[1641710870271,0.00042528,41938.0,41937.0,1.48859812]
[1641710871312,0.00042528,41938.0,41937.0,1.46759812]
[1641710872011,0.00042528,41938.0,41937.0,1.48859812]
[1641710872414,0.00041595,41938.0,41937.0,1.48859812]
[1641710873215,0.00041595,41938.0,41937.0,1.46759812]
[1641710873817,0.24041595,41938.0,41937.0,1.46759812]
[1641710874016,0.24041595,41938.0,41937.0,1.48859812]
[1641710874252,0.24041595,41938.0,41937.0,1.1787596]
[1641710874453,0.24041595,41938.0,41937.0,0.78350183]
[1641710875260,0.24041595,41938.0,41937.0,0.76250183]
[1641710876056,0.24041595,41938.0,41937.0,0.78350183]
[1641710876256,0.23987778,41938.0,41937.0,0.78350183]
[1641710876656,0.26336996,41938.0,41937.0,0.78350183]
[1641710876861,0.26295401,41938.0,41937.0,0.78350183]
[1641710877257,0.26295401,41938.0,41937.0,0.76250183]
[1641710878110,0.26295401,41938.0,41937.0,0.78150183]
[1641710878511,0.26295401,41938.0,41937.0,0.521884]
[1641710878711,0.26295401,41938.0,41937.0,0.138226]
[1641710879211,0.26295401,41938.0,41937.0,0.119226]
[1641710879815,0.26295401,41938.0,41937.0,0.219226]
[1641710880012,0.26337016,41938.0,41937.0,0.231226]
[1641710880213,0.26295401,41938.0,41937.0,0.231226]
[1641710881214,0.26295401,41938.0,41937.0,0.219226]
[1641710882061,0.26295401,41938.0,41937.0,0.231226]
[1641710883461,0.26295401,41938.0,41937.0,0.219226]
[1641710883963,0.26295401,41938.0,41937.0,0.231226]
[1641710885164,0.26295401,41938.0,41937.0,0.169226]
[1641710885406,0.26295401,41938.0,41937.0,0.219226]
[1641710886006,0.26295401,41938.0,41937.0,0.121615]
[1641710886709,0.26295401,41938.0,41937.0,0.181226]
[1641710887108,0.26295401,41938.0,41937.0,0.231226]
[1641710887309,0.26295401,41938.0,41937.0,0.119226]
[1641710888010,0.26295401,41938.0,41937.0,0.131226]
[1641710888410,0.26295401,41938.0,41937.0,0.181226]
[1641710888612,0.26295401,41938.0,41937.0,0.231226]
[1641710889258,0.26295401,41938.0,41937.0,0.219226]
[1641710890060,0.26295401,41938.0,41937.0,0.231226]
[1641710891363,0.26295401,41938.0,41937.0,0.219226]
[1641710891963,0.26295401,41938.0,41937.0,0.231226]
[1641710893314,0.26295401,41938.0,41937.0,0.40528879]
[1641710893517,0.26295401,41938.0,41937.0,0.50653704]
[1641710893714,0.26295401,41938.0,41937.0,0.70413225]
[1641710894114,0.50151995,41939.0,41938.0,0.38490106]
[1641710894315,0.50151995,41939.0,41938.0,0.69738549]
[1641710894515,0.27162296,41939.0,41938.0,0.79738549]
[1641710895715,0.27162296,41939.0,41938.0,0.99512286]
[1641710896115,0.27162296,41939.0,41938.0,1.01212286]
[1641710897372,0.27162296,41939.0,41938.0,0.99512286]
[1641710898176,0.27162296,41939.0,41938.0,1.01212286]
[1641710899277,0.27162296,41939.0,41938.0,0.99512286]
[1641710900076,0.27162296,41939.0,41938.0,1.01212286]
[1641710901412,0.000696,41941.0,41939.0,0.0596]
[1641710901612,0.000696,41941.0,41940.0,0.70669826]
[1641710901812,0.0001,41942.0,41940.0,0.85572109]
[1641710902010,0.0001,41942.0,41941.0,0.41417024]
[1641710902210,0.0001,41942.0,41941.0,0.84562824]
[1641710902409,0.0001,41942.0,41941.0,0.94562824]
[1641710902609,0.0001,41942.0,41941.0,1.00522524]
[1641710902810,0.0007322,41943.0,41942.0,1.05]
[1641710903012,0.00041001,41948.0,41943.0,0.38494295]
[1641710903211,0.00421001,41949.0,41948.0,0.00122974]
[1641710903811,0.00421001,41949.0,41948.0,0.32496067]
[1641710904166,0.00421001,41949.0,41948.0,0.82361867]
[1641710904364,0.00421001,41949.0,41948.0,1.32312695]
[1641710904963,0.24421001,41949.0,41948.0,0.65867487]
[1641710905164,0.24421001,41949.0,41948.0,0.63247513]
[1641710905369,0.24421001,41949.0,41948.0,0.61747513]
[1641710905565,0.24421001,41949.0,41948.0,0.54325513]
[1641710905965,0.24421001,41949.0,41948.0,0.85253736]
[1641710906165,0.24421001,41949.0,41948.0,0.86953736]
[1641710906768,0.24421001,41949.0,41948.0,1.22444038]
[1641710907365,0.24421001,41949.0,41948.0,1.20744038]
[1641710907565,0.24462918,41949.0,41948.0,0.54325513]
[1641710908013,0.24462918,41949.0,41948.0,0.56125513]
[1641710908315,0.24462918,41949.0,41948.0,0.90404195]
[1641710909315,0.24462918,41949.0,41948.0,0.88604195]
[1641710910114,0.24462918,41949.0,41948.0,0.90504195]
[1641710910719,0.07021018,41949.0,41948.0,0.90633802]
[1641710911116,0.07021018,41949.0,41948.0,0.56225513]
[1641710911317,0.07021018,41949.0,41948.0,0.54325513]
[1641710911867,0.07021018,41949.0,41948.0,0.88104876]
[1641710912062,0.07020222,41949.0,41948.0,0.89604876]
[1641710912664,0.07020222,41949.0,41948.0,0.55825513]
[1641710913065,0.07020222,41949.0,41948.0,0.89709418]
[1641710913264,0.07020222,41949.0,41948.0,0.88209418]
[1641710914065,0.07020222,41949.0,41948.0,0.89709418]
[1641710915408,0.07020093,41949.0,41948.0,0.88209418]
[1641710916009,0.00040992,41949.0,41948.0,0.88209418]
[1641710916209,0.00040992,41949.0,41948.0,0.90109418]
[1641710916611,0.00041033,41949.0,41948.0,0.90109418]
[1641710917215,0.00041033,41949.0,41948.0,0.95011691]
[1641710917409,0.00041033,41949.0,41948.0,0.93111691]
[1641710918210,0.00041033,41949.0,41948.0,0.95111691]
[1641710919460,0.00041033,41949.0,41948.0,0.93111691]
[1641710919665,0.00041033,41949.0,41948.0,0.44325513]
[1641710919864,0.00041036,41949.0,41947.0,0.119196]
[1641710920062,0.00041036,41949.0,41948.0,0.025]
[1641710920663,0.00041036,41949.0,41948.0,0.3925148]
[1641710920963,0.00041034,41949.0,41948.0,0.83577749]
[1641710921362,0.00041034,41949.0,41948.0,0.81077749]
[1641710921563,0.00041034,41949.0,41948.0,1.01077749]
[1641710921961,0.00082068,41949.0,41948.0,1.01077749]
[1641710922164,0.00041034,41949.0,41948.0,1.02977749]
[1641710922363,0.00041034,41949.0,41948.0,1.35861856]
[1641710923012,0.00041034,41949.0,41948.0,1.02977749]
[1641710923413,0.00041034,41949.0,41948.0,1.01077749]
[1641710924012,0.00041034,41949.0,41948.0,1.3924325]
[1641710924214,0.00041034,41949.0,41948.0,1.03077749]
[1641710925515,0.00041034,41949.0,41948.0,1.01077749]
[1641710926116,0.00041034,41949.0,41948.0,1.02977749]
[1641710926522,0.00041034,41949.0,41948.0,1.37335399]
[1641710926765,0.00041034,41949.0,41948.0,1.00583919]
[1641710927368,0.00041034,41949.0,41948.0,0.98683919]
[1641710928170,0.00041034,41949.0,41948.0,0.45826269]
[1641710928369,0.00041034,41949.0,41948.0,0.50826269]
[1641710928567,0.00041034,41949.0,41948.0,0.55826269]
[1641710929470,0.00041034,41949.0,41948.0,0.54326269]
[1641710930267,0.00441034,41949.0,41948.0,0.55726269]
[1641710930714,0.00447068,41949.0,41948.0,0.55726269]
[1641710931514,0.00047068,41949.0,41948.0,0.54326269]
[1641710932114,0.00447068,41949.0,41948.0,0.55726269]
[1641710933420,0.00047068,41949.0,41948.0,0.54326269]
[1641710934262,0.00447068,41949.0,41948.0,0.55726269]
[1641710934958,0.00447068,41949.0,41948.0,0.17360469]
[1641710935459,0.00047068,41949.0,41948.0,0.05960469]
[1641710936260,0.00588102,41949.0,41948.0,0.07660469]
[1641710936461,0.00547068,41949.0,41948.0,0.017]
[1641710937463,0.00047068,41949.0,41947.0,0.119196]
[1641710938109,0.00347068,41949.0,41947.0,0.154196]
[1641710938511,0.00347067,41949.0,41947.0,0.154196]
[1641710938911,0.01128149,41951.0,41947.0,0.154196]
[1641710939212,0.01128149,41951.0,41948.0,0.119217]
[1641710939613,0.01128149,41951.0,41948.0,0.059608]
[1641710940212,0.02228149,41951.0,41948.0,0.127217]
[1641710940414,0.02228149,41951.0,41948.0,0.067608]
[1641710941414,0.01128149,41951.0,41949.0,0.059608]
[1641710942269,0.02628149,41951.0,41949.0,0.065608]
[1641710942468,0.02628149,41951.0,41949.0,0.006]
[1641710943270,0.0858954,41951.0,41949.0,0.006]
[1641710943469,0.69365266,41950.0,41944.0,0.00043375]
[1641710943667,0.39365266,41950.0,41944.0,0.00043375]
[1641710944167,0.42965266,41950.0,41944.0,0.0088675]
[1641710944367,0.33028022,41945.0,41944.0,0.0088675]
[1641710944768,0.33028022,41945.0,41944.0,0.00843375]
[1641710945168,0.33028022,41945.0,41944.0,0.00886751]
[1641710945413,0.33028022,41945.0,41944.0,0.00043376]
[1641710945617,0.72455891,41945.0,41944.0,0.00043376]
[1641710945913,0.33028022,41945.0,41944.0,0.00043376]
[1641710946111,0.33828022,41945.0,41944.0,0.01043376]
[1641710946312,0.33828022,41945.0,41944.0,0.0104038]
[1641710946512,0.57828022,41945.0,41944.0,0.0104038]
[1641710947316,0.9833084,41945.0,41944.0,0.0104038]
[1641710947514,0.98073798,41945.0,41944.0,0.0004131]
[1641710947818,1.20344862,41945.0,41944.0,0.0004131]
[1641710948017,1.25124862,41945.0,41944.0,0.0004131]
[1641710948217,1.68324862,41945.0,41944.0,0.0004131]
[1641710948618,2.70025059,41945.0,41931.0,0.059631]
[1641710948818,2.70025059,41945.0,41920.0,0.96619683]
[1641710948819,0.1,41935.0,41923.0,0.238546]
[1641710949023,0.5093413,41934.0,41923.0,0.238546]
[1641710949272,0.7093413,41934.0,41923.0,0.238546]
[1641710949472,0.0596427,41932.0,41923.0,0.238546]
[1641710949671,0.44011741,41931.0,41928.0,0.00042462]
[1641710949870,0.355059,41929.0,41928.0,0.00042462]
[1641710950074,0.66389358,41929.0,41928.0,0.00042462]
[1641710951671,0.30883458,41929.0,41928.0,0.00042462]
[1641710951874,0.30883458,41929.0,41928.0,0.00042334]
[1641710952073,0.30125676,41934.0,41928.0,0.00042334]
[1641710952074,0.00125676,41934.0,41928.0,0.00042334]
[1641710952275,0.004,41929.0,41928.0,0.00042334]
[1641710953419,0.3076362,41931.0,41928.0,0.00042334]
[1641710953615,0.5076362,41931.0,41928.0,0.00042334]
[1641710953813,0.3076362,41931.0,41928.0,0.00042334]
[1641710954013,0.3076362,41931.0,41929.0,0.00042081]
[1641710954215,0.3396362,41931.0,41929.0,0.00042081]
[1641710954615,0.59928128,41931.0,41929.0,0.00042081]
[1641710955216,0.59928128,41931.0,41929.0,0.0004208]
[1641710955415,0.56728128,41931.0,41929.0,0.0004208]
[1641710955614,0.80728128,41931.0,41929.0,0.0004208]
[1641710956215,0.5856362,41931.0,41929.0,0.0004208]
[1641710956416,0.5856362,41931.0,41929.0,0.00042335]
[1641710956672,1.35,41930.0,41929.0,0.00042335]
[1641710956875,1.39907545,41930.0,41929.0,0.00042335]
[1641710957072,1.66332545,41930.0,41929.0,0.00042335]